[Event "Late-Titled-Tuesday-Blitz-May-28-2024"]
[Site "Chess.com"]
[Date "2024.05.28"]
[Round "9"]
[White "Connectedcloud"]
[Black "Veleamater"]
[Result "1-0"]
[WhiteElo "2248"]
[BlackElo "2439"]
[TimeControl "180+1"]
[EndTime "15:43:43 PDT"]
[Termination "Connectedcloud won by resignation"]

1. e4 {[%clk 0:02:58.7]} 1... d6 {[%clk 0:03:00]} 2. d4 {[%clk 0:02:56.2]} 2...
g6 {[%clk 0:03:00.5]} 3. Nc3 {[%clk 0:02:53]} 3... Bg7 {[%clk 0:03:00.6]} 4. Nf3
{[%clk 0:02:48.1]} 4... Nf6 {[%clk 0:03:00.6]} 5. Be2 {[%clk 0:02:47.8]} 5...
O-O {[%clk 0:03:00.6]} 6. O-O {[%clk 0:02:48.5]} 6... Nc6 {[%clk 0:03:01.1]} 7.
d5 {[%clk 0:02:47.4]} 7... Ne5 {[%clk 0:03:00.9]} 8. Nxe5 {[%clk 0:02:47.9]}
8... dxe5 {[%clk 0:03:01.8]} 9. Be3 {[%clk 0:02:48]} 9... h6 {[%clk 0:03:02.3]}
10. h3 {[%clk 0:02:46.4]} 10... Ne8 {[%clk 0:03:01.8]} 11. Qd2 {[%clk
0:02:42.5]} 11... Kh7 {[%clk 0:03:01.5]} 12. Rad1 {[%clk 0:02:40.2]} 12... f5
{[%clk 0:03:00.9]} 13. exf5 {[%clk 0:02:37.1]} 13... gxf5 {[%clk 0:03:00.9]} 14.
f4 {[%clk 0:02:36.5]} 14... e4 {[%clk 0:03:00.7]} 15. Bd4 {[%clk 0:02:33.7]}
15... Rg8 {[%clk 0:02:58.6]} 16. Kh1 {[%clk 0:02:30.9]} 16... Nd6 {[%clk
0:02:52.9]} 17. Qe3 {[%clk 0:02:28.8]} 17... a6 {[%clk 0:02:41.8]} 18. Bh5
{[%clk 0:02:27.4]} 18... Qf8 {[%clk 0:02:38.3]} 19. Ne2 {[%clk 0:02:22.7]} 19...
Bf6 {[%clk 0:02:35.9]} 20. Rf2 {[%clk 0:02:10.9]} 20... Qg7 {[%clk 0:02:28.9]}
21. b3 {[%clk 0:01:59.2]} 21... Bd7 {[%clk 0:02:27.6]} 22. c4 {[%clk 0:01:58.6]}
22... b6 {[%clk 0:02:27.5]} 23. Rc1 {[%clk 0:01:47.5]} 23... Be8 {[%clk
0:02:21.2]} 24. Bxe8 {[%clk 0:01:46.5]} 24... Nxe8 {[%clk 0:02:20.8]} 25. Rg1
{[%clk 0:01:40.4]} 25... h5 {[%clk 0:02:19.9]} 26. g3 {[%clk 0:01:33.6]} 26...
Qh6 {[%clk 0:02:15.2]} 27. Bxf6 {[%clk 0:01:31.4]} 27... Nxf6 {[%clk 0:02:14.7]}
28. Nd4 {[%clk 0:01:30.6]} 28... Qg6 {[%clk 0:02:00.3]} 29. Rfg2 {[%clk
0:01:27.5]} 29... a5 {[%clk 0:01:43.7]} 30. Nc6 {[%clk 0:01:27.5]} 30... Rg7
{[%clk 0:01:41.7]} 31. Ne5 {[%clk 0:01:27.1]} 31... Qh6 {[%clk 0:01:39.3]} 32.
a3 {[%clk 0:01:16.8]} 32... Rag8 {[%clk 0:01:37.9]} 33. b4 {[%clk 0:01:13.4]}
33... axb4 {[%clk 0:01:37.7]} 34. axb4 {[%clk 0:01:13.2]} 34... h4 {[%clk
0:01:36.2]} 35. g4 {[%clk 0:01:02]} 35... fxg4 {[%clk 0:01:27.4]} 36. hxg4
{[%clk 0:01:02.2]} 36... h3 {[%clk 0:01:20.3]} 37. Rg3 {[%clk 0:01:02.4]} 37...
h2 {[%clk 0:01:20.3]} 38. R1g2 {[%clk 0:01:00.6]} 38... Kh8 {[%clk 0:00:21.6]}
39. Rxh2 {[%clk 0:00:58.7]} 39... Rh7 {[%clk 0:00:18.5]} 40. Rxh6 {[%clk
0:00:58]} 40... Rxh6+ {[%clk 0:00:18.5]} 41. Rh3 {[%clk 0:00:58.5]} 41... Rxh3+
{[%clk 0:00:15.9]} 42. Qxh3+ {[%clk 0:00:59]} 42... Kg7 {[%clk 0:00:16.4]} 43.
g5 {[%clk 0:00:57.4]} 1-0

[Event "Late-Titled-Tuesday-Blitz-May-28-2024"]
[Site "Chess.com"]
[Date "2024.05.28"]
[Round "9"]
[White "dealshark"]
[Black "carloseduar100"]
[Result "1/2-1/2"]
[WhiteElo "2424"]
[BlackElo "2305"]
[TimeControl "180+1"]
[EndTime "15:43:53 PDT"]
[Termination "Game drawn by repetition"]

1. e4 {[%clk 0:03:00.9]} 1... e6 {[%clk 0:02:57.3]} 2. d4 {[%clk 0:03:00.2]}
2... d5 {[%clk 0:02:57.6]} 3. Bd3 {[%clk 0:02:59.6]} 3... dxe4 {[%clk
0:02:57.1]} 4. Bxe4 {[%clk 0:02:59.8]} 4... Nf6 {[%clk 0:02:58]} 5. Bf3 {[%clk
0:02:58.1]} 5... c5 {[%clk 0:02:58.5]} 6. Ne2 {[%clk 0:02:57.8]} 6... Nbd7
{[%clk 0:02:58.7]} 7. Be3 {[%clk 0:02:55.7]} 7... Be7 {[%clk 0:02:57.1]} 8. O-O
{[%clk 0:02:55.5]} 8... O-O {[%clk 0:02:57.5]} 9. Nbc3 {[%clk 0:02:53.7]} 9...
a6 {[%clk 0:02:57.5]} 10. Qd2 {[%clk 0:02:46]} 10... cxd4 {[%clk 0:02:57.1]} 11.
Nxd4 {[%clk 0:02:44.1]} 11... Ne5 {[%clk 0:02:57]} 12. Be2 {[%clk 0:02:42.9]}
12... Qc7 {[%clk 0:02:52.7]} 13. Rad1 {[%clk 0:02:28.5]} 13... Nc4 {[%clk
0:02:51]} 14. Bxc4 {[%clk 0:02:28.5]} 14... Qxc4 {[%clk 0:02:51.9]} 15. b3
{[%clk 0:02:21.8]} 15... Qc7 {[%clk 0:02:47.4]} 16. Qd3 {[%clk 0:02:17.8]} 16...
e5 {[%clk 0:02:44.3]} 17. Nde2 {[%clk 0:02:10.7]} 17... Be6 {[%clk 0:02:41.5]}
18. Ne4 {[%clk 0:02:09.2]} 18... Rfd8 {[%clk 0:02:35.1]} 19. Nxf6+ {[%clk
0:02:07.5]} 19... Bxf6 {[%clk 0:02:36]} 20. Qe4 {[%clk 0:02:06.1]} 20... g6
{[%clk 0:02:31.4]} 21. c4 {[%clk 0:01:58.9]} 21... b5 {[%clk 0:02:28.3]} 22. c5
{[%clk 0:01:49.5]} 22... Kg7 {[%clk 0:02:06.6]} 23. Ng3 {[%clk 0:01:41.9]} 23...
h5 {[%clk 0:02:01.5]} 24. Qc2 {[%clk 0:01:26.3]} 24... b4 {[%clk 0:01:59.5]} 25.
Rxd8 {[%clk 0:01:15.6]} 25... Rxd8 {[%clk 0:01:59.6]} 26. Rd1 {[%clk 0:01:16.2]}
26... a5 {[%clk 0:01:59.3]} 27. h3 {[%clk 0:01:11.1]} 27... Be7 {[%clk
0:01:49.2]} 28. Rxd8 {[%clk 0:00:46.1]} 28... Qxd8 {[%clk 0:01:46.8]} 29. c6
{[%clk 0:00:46.6]} 29... Qc7 {[%clk 0:01:46.7]} 30. Qe4 {[%clk 0:00:30.4]} 30...
f5 {[%clk 0:01:44.1]} 31. Qf3 {[%clk 0:00:19]} 31... e4 {[%clk 0:01:39.1]} 32.
Nxh5+ {[%clk 0:00:18]} 32... gxh5 {[%clk 0:01:32]} 33. Qxh5 {[%clk 0:00:18.9]}
33... Qxc6 {[%clk 0:01:26.1]} 34. Bh6+ {[%clk 0:00:16.3]} 34... Kf6 {[%clk
0:01:12.8]} 35. Qg5+ {[%clk 0:00:11]} 35... Kf7 {[%clk 0:01:09.9]} 36. Qh5+
{[%clk 0:00:09.4]} 36... Kf6 {[%clk 0:01:05]} 37. Qg5+ {[%clk 0:00:01.6]} 37...
Kf7 {[%clk 0:01:04.9]} 38. Qh5+ {[%clk 0:00:02]} 38... Kf6 {[%clk 0:00:58.8]}
1/2-1/2

[Event "Late-Titled-Tuesday-Blitz-May-28-2024"]
[Site "Chess.com"]
[Date "2024.05.28"]
[Round "9"]
[White "ChessLebaneseSalah"]
[Black "cassoulet"]
[Result "0-1"]
[WhiteElo "2567"]
[BlackElo "2726"]
[TimeControl "180+1"]
[EndTime "15:43:55 PDT"]
[Termination "cassoulet won by checkmate"]

1. e4 {[%clk 0:03:00.9]} 1... c5 {[%clk 0:02:59.6]} 2. Nf3 {[%clk 0:03:00.9]}
2... e6 {[%clk 0:02:58.9]} 3. Nc3 {[%clk 0:03:00.4]} 3... Nc6 {[%clk 0:02:58.6]}
4. d4 {[%clk 0:03:00.4]} 4... cxd4 {[%clk 0:02:59.5]} 5. Nxd4 {[%clk 0:03:01]}
5... Nf6 {[%clk 0:03:00.2]} 6. Nxc6 {[%clk 0:03:00.5]} 6... bxc6 {[%clk
0:03:01.1]} 7. e5 {[%clk 0:03:01.1]} 7... Nd5 {[%clk 0:03:01.7]} 8. Ne4 {[%clk
0:03:01.7]} 8... Bb7 {[%clk 0:03:02.3]} 9. c4 {[%clk 0:02:56.2]} 9... Nb4 {[%clk
0:03:01.3]} 10. f4 {[%clk 0:02:37.7]} 10... c5 {[%clk 0:02:58.5]} 11. Bd3 {[%clk
0:02:23.8]} 11... Qh4+ {[%clk 0:02:44.6]} 12. g3 {[%clk 0:02:18]} 12... Nxd3+
{[%clk 0:02:44.2]} 13. Qxd3 {[%clk 0:02:17.7]} 13... Qh3 {[%clk 0:02:43.9]} 14.
Be3 {[%clk 0:02:01]} 14... Qf5 {[%clk 0:02:34.8]} 15. O-O-O {[%clk 0:01:33.1]}
15... Rd8 {[%clk 0:02:31.9]} 16. Nd6+ {[%clk 0:01:26]} 16... Bxd6 {[%clk
0:02:31.7]} 17. Qxd6 {[%clk 0:01:26.9]} 17... f6 {[%clk 0:02:18.3]} 18. Bxc5
{[%clk 0:01:09.2]} 18... Kf7 {[%clk 0:02:18.4]} 19. Rhe1 {[%clk 0:01:07]} 19...
Rhe8 {[%clk 0:02:11.6]} 20. exf6 {[%clk 0:00:56.8]} 20... gxf6 {[%clk
0:02:04.7]} 21. b3 {[%clk 0:00:53]} 21... a6 {[%clk 0:02:01.1]} 22. Bb6 {[%clk
0:00:50.8]} 22... Bc6 {[%clk 0:01:37.6]} 23. Bxd8 {[%clk 0:00:48.3]} 23... Rxd8
{[%clk 0:01:38.5]} 24. Qd3 {[%clk 0:00:40.7]} 24... Qh5 {[%clk 0:01:37.4]} 25.
Kb2 {[%clk 0:00:29.4]} 25... a5 {[%clk 0:01:37.5]} 26. a4 {[%clk 0:00:25.1]}
26... Rb8 {[%clk 0:01:36.9]} 27. Ka2 {[%clk 0:00:21.3]} 27... Rb7 {[%clk
0:01:27.2]} 28. f5 {[%clk 0:00:21]} 28... e5 {[%clk 0:01:26.3]} 29. Rd2 {[%clk
0:00:14.9]} 29... Qg4 {[%clk 0:01:19.6]} 30. Qd6 {[%clk 0:00:10]} 30... Qxf5
{[%clk 0:01:15.6]} 31. Qd3 {[%clk 0:00:08.1]} 31... e4 {[%clk 0:01:13.8]} 32.
Qf1 {[%clk 0:00:04.8]} 32... Qe5 {[%clk 0:01:09.6]} 33. Rde2 {[%clk 0:00:03.4]}
33... Qc3 {[%clk 0:01:04.5]} 34. Re3 {[%clk 0:00:03.7]} 34... Qd2+ {[%clk
0:01:01.9]} 35. Ka1 {[%clk 0:00:03.9]} 35... Bxa4 {[%clk 0:00:55.8]} 36. R1e2
{[%clk 0:00:04.4]} 36... Qd4+ {[%clk 0:00:55.3]} 37. Ka2 {[%clk 0:00:04.4]}
37... Bc6 {[%clk 0:00:52.9]} 38. Rf3 {[%clk 0:00:04.5]} 38... exf3 {[%clk
0:00:51.4]} 39. Rb2 {[%clk 0:00:04.8]} 39... a4 {[%clk 0:00:50.1]} 40. Qh3
{[%clk 0:00:04.2]} 40... axb3+ {[%clk 0:00:48.3]} 41. Rxb3 {[%clk 0:00:03.8]}
41... Qd2+ {[%clk 0:00:48.3]} 42. Ka3 {[%clk 0:00:04.3]} 42... Ra7# {[%clk
0:00:46.1]} 0-1

[Event "Late-Titled-Tuesday-Blitz-May-28-2024"]
[Site "Chess.com"]
[Date "2024.05.28"]
[Round "9"]
[White "rasmussvane"]
[Black "Alphafischer2019"]
[Result "1-0"]
[WhiteElo "2921"]
[BlackElo "2657"]
[TimeControl "180+1"]
[EndTime "15:43:58 PDT"]
[Termination "rasmussvane won by checkmate"]

1. Nf3 {[%clk 0:03:00.4]} 1... Nf6 {[%clk 0:02:59.6]} 2. g3 {[%clk 0:03:00.6]}
2... b6 {[%clk 0:02:59.9]} 3. Bg2 {[%clk 0:02:59.7]} 3... Bb7 {[%clk 0:03:00.8]}
4. O-O {[%clk 0:02:59.8]} 4... g6 {[%clk 0:03:01.5]} 5. d4 {[%clk 0:02:59.2]}
5... Bg7 {[%clk 0:03:02.1]} 6. c4 {[%clk 0:02:58.7]} 6... O-O {[%clk 0:03:02.4]}
7. Re1 {[%clk 0:02:58.6]} 7... d6 {[%clk 0:02:53.1]} 8. Qc2 {[%clk 0:02:52.8]}
8... c5 {[%clk 0:02:49.3]} 9. d5 {[%clk 0:02:48.2]} 9... b5 {[%clk 0:02:49.7]}
10. e4 {[%clk 0:02:46]} 10... bxc4 {[%clk 0:02:49.1]} 11. Na3 {[%clk 0:02:35.1]}
11... Na6 {[%clk 0:02:36.8]} 12. Nxc4 {[%clk 0:02:34.6]} 12... Nb4 {[%clk
0:02:37.1]} 13. Qe2 {[%clk 0:02:32.4]} 13... Rb8 {[%clk 0:01:32.7]} 14. a3
{[%clk 0:02:30.4]} 14... Na6 {[%clk 0:01:33.2]} 15. Bd2 {[%clk 0:02:30.9]} 15...
Bc8 {[%clk 0:01:33.2]} 16. Bc3 {[%clk 0:02:26.8]} 16... Nc7 {[%clk 0:01:32.1]}
17. a4 {[%clk 0:02:08.1]} 17... Ba6 {[%clk 0:01:27.5]} 18. Nfd2 {[%clk
0:01:59.1]} 18... Re8 {[%clk 0:01:15.4]} 19. Qd1 {[%clk 0:01:57.1]} 19... Qd7
{[%clk 0:01:08]} 20. Qc2 {[%clk 0:01:52.4]} 20... e6 {[%clk 0:01:03.9]} 21. dxe6
{[%clk 0:01:50.5]} 21... Nxe6 {[%clk 0:01:04.8]} 22. e5 {[%clk 0:01:26.3]} 22...
dxe5 {[%clk 0:00:58]} 23. Nxe5 {[%clk 0:01:27.2]} 23... Qc7 {[%clk 0:00:38.2]}
24. Nc6 {[%clk 0:01:24.2]} 24... Rb6 {[%clk 0:00:36]} 25. Ba5 {[%clk 0:01:22.6]}
25... Bb7 {[%clk 0:00:27.8]} 26. Bxb6 {[%clk 0:01:13.7]} 26... Qxb6 {[%clk
0:00:28.7]} 27. a5 {[%clk 0:01:10.7]} 27... Qc7 {[%clk 0:00:23]} 28. Qa4 {[%clk
0:01:05.9]} 28... Rc8 {[%clk 0:00:19.6]} 29. Ne5 {[%clk 0:00:48.9]} 29... Bxg2
{[%clk 0:00:20.5]} 30. Kxg2 {[%clk 0:00:49.8]} 30... Nd5 {[%clk 0:00:20.3]} 31.
Ndf3 {[%clk 0:00:46.3]} 31... Nb4 {[%clk 0:00:19.8]} 32. Rad1 {[%clk 0:00:42.8]}
32... Qb7 {[%clk 0:00:19.5]} 33. Rd7 {[%clk 0:00:40.9]} 33... Rc7 {[%clk
0:00:20]} 34. Rxc7 {[%clk 0:00:38.3]} 34... Qxc7 {[%clk 0:00:20.9]} 35. Qe8+
{[%clk 0:00:38]} 35... Bf8 {[%clk 0:00:20.6]} 36. Nd7 {[%clk 0:00:36]} 36... Nd5
{[%clk 0:00:14.9]} 37. Rxe6 {[%clk 0:00:34.3]} 37... Nf4+ {[%clk 0:00:11.1]} 38.
gxf4 {[%clk 0:00:34.1]} 38... Qxf4 {[%clk 0:00:11.9]} 39. Qxf8# {[%clk 0:00:34]}
1-0

[Event "Late-Titled-Tuesday-Blitz-May-28-2024"]
[Site "Chess.com"]
[Date "2024.05.28"]
[Round "9"]
[White "AldokhinIvan"]
[Black "Magicmaster17"]
[Result "0-1"]
[WhiteElo "2641"]
[BlackElo "2872"]
[TimeControl "180+1"]
[EndTime "15:43:59 PDT"]
[Termination "Magicmaster17 won on time"]

1. e4 {[%clk 0:02:54.8]} 1... e5 {[%clk 0:03:00.2]} 2. Nf3 {[%clk 0:02:52.3]}
2... Nc6 {[%clk 0:03:00.7]} 3. Bb5 {[%clk 0:02:52.7]} 3... a6 {[%clk 0:03:01.3]}
4. Ba4 {[%clk 0:02:53.1]} 4... Bc5 {[%clk 0:03:01.9]} 5. Nxe5 {[%clk 0:02:49.8]}
5... Nxe5 {[%clk 0:02:55.4]} 6. d4 {[%clk 0:02:49.1]} 6... Bxd4 {[%clk 0:02:33]}
7. Qxd4 {[%clk 0:02:48.1]} 7... Qf6 {[%clk 0:02:33.2]} 8. Qd1 {[%clk 0:02:36.5]}
8... Ne7 {[%clk 0:02:28.2]} 9. O-O {[%clk 0:02:31.8]} 9... b5 {[%clk 0:02:27.3]}
10. Bb3 {[%clk 0:02:31]} 10... Bb7 {[%clk 0:02:27.9]} 11. f4 {[%clk 0:02:26.6]}
11... Nc4 {[%clk 0:02:28.3]} 12. Bxc4 {[%clk 0:02:06.1]} 12... bxc4 {[%clk
0:02:29.2]} 13. Nc3 {[%clk 0:02:06.4]} 13... d5 {[%clk 0:02:25.5]} 14. e5 {[%clk
0:01:34.1]} 14... Qb6+ {[%clk 0:02:24]} 15. Kh1 {[%clk 0:01:33.6]} 15... d4
{[%clk 0:02:24.4]} 16. Ne2 {[%clk 0:01:26]} 16... O-O-O {[%clk 0:02:23.9]} 17.
f5 {[%clk 0:01:09.3]} 17... h5 {[%clk 0:02:08.1]} 18. Nf4 {[%clk 0:00:59.4]}
18... Nxf5 {[%clk 0:02:02.4]} 19. Qe2 {[%clk 0:00:47.1]} 19... h4 {[%clk
0:01:58.8]} 20. Nh3 {[%clk 0:00:43.7]} 20... d3 {[%clk 0:01:45.2]} 21. Qg4
{[%clk 0:00:40.6]} 21... g6 {[%clk 0:01:41.2]} 22. cxd3 {[%clk 0:00:24.3]} 22...
Rxd3 {[%clk 0:01:39.4]} 23. Bf4 {[%clk 0:00:16.9]} 23... Rhd8 {[%clk 0:01:14.1]}
24. Rac1 {[%clk 0:00:16.7]} 24... Qxb2 {[%clk 0:01:07.8]} 25. Rxc4 {[%clk
0:00:15]} 25... Rd2 {[%clk 0:01:06.2]} 26. Bxd2 {[%clk 0:00:13.6]} 26... Rxd2
{[%clk 0:01:05.4]} 27. Nf4 {[%clk 0:00:13.7]} 27... Kb8 {[%clk 0:01:00.1]} 28.
Qh3 {[%clk 0:00:08.4]} 28... Rf2 {[%clk 0:00:40.8]} 29. Rg1 {[%clk 0:00:03]}
29... Qxe5 {[%clk 0:00:37.8]} 30. Qb3 {[%clk 0:00:03.1]} 30... Rxf4 {[%clk
0:00:32.8]} 31. Rb1 {[%clk 0:00:00.9]} 31... Nd6 {[%clk 0:00:32.3]} 0-1

[Event "Late-Titled-Tuesday-Blitz-May-28-2024"]
[Site "Chess.com"]
[Date "2024.05.28"]
[Round "9"]
[White "Alina_Gumerovna"]
[Black "neilbhav"]
[Result "0-1"]
[WhiteElo "2191"]
[BlackElo "2406"]
[TimeControl "180+1"]
[EndTime "15:44:03 PDT"]
[Termination "neilbhav won by resignation"]

1. e4 {[%clk 0:01:35.8]} 1... e5 {[%clk 0:02:59.5]} 2. Nf3 {[%clk 0:01:36.3]}
2... Nc6 {[%clk 0:02:59.8]} 3. Bb5 {[%clk 0:01:37]} 3... a6 {[%clk 0:03:00.3]}
4. O-O {[%clk 0:01:37.7]} 4... axb5 {[%clk 0:02:59.8]} 5. c3 {[%clk 0:01:33.5]}
5... Nf6 {[%clk 0:02:59]} 6. d4 {[%clk 0:01:34]} 6... d6 {[%clk 0:02:59.3]} 7.
d5 {[%clk 0:01:33.9]} 7... Ne7 {[%clk 0:02:59.1]} 8. Re1 {[%clk 0:01:34]} 8...
Bd7 {[%clk 0:02:59.4]} 9. h3 {[%clk 0:01:34.6]} 9... Ng6 {[%clk 0:02:59.8]} 10.
b4 {[%clk 0:01:34.5]} 10... Be7 {[%clk 0:03:00.2]} 11. a3 {[%clk 0:01:33.7]}
11... O-O {[%clk 0:03:00.6]} 12. Be3 {[%clk 0:01:33.3]} 12... c6 {[%clk
0:03:01]} 13. Qd2 {[%clk 0:01:33.9]} 13... Nxe4 {[%clk 0:03:00.7]} 14. Qc2
{[%clk 0:01:33.3]} 14... f5 {[%clk 0:03:00.8]} 15. dxc6 {[%clk 0:01:33.1]} 15...
bxc6 {[%clk 0:03:01.2]} 16. Nbd2 {[%clk 0:01:33]} 16... d5 {[%clk 0:03:01]} 17.
a4 {[%clk 0:01:27.4]} 17... Nxd2 {[%clk 0:02:59.9]} 18. Nxd2 {[%clk 0:01:27.6]}
18... f4 {[%clk 0:02:59.5]} 19. Bc5 {[%clk 0:01:28]} 19... Bxc5 {[%clk
0:02:57.5]} 20. bxc5 {[%clk 0:01:28.9]} 20... Bf5 {[%clk 0:02:50.2]} 21. Qb3
{[%clk 0:01:26.3]} 21... bxa4 {[%clk 0:02:45.7]} 22. Rxa4 {[%clk 0:01:27.2]}
22... Rxa4 {[%clk 0:02:38.9]} 23. Qxa4 {[%clk 0:01:28.1]} 23... Qa8 {[%clk
0:02:34.6]} 24. Qd1 {[%clk 0:01:24.6]} 24... Bd3 {[%clk 0:02:24.9]} 25. h4
{[%clk 0:01:21.8]} 25... e4 {[%clk 0:02:24.1]} 26. h5 {[%clk 0:01:21.4]} 26...
Ne5 {[%clk 0:02:22.7]} 27. h6 {[%clk 0:01:19.5]} 27... gxh6 {[%clk 0:02:19.5]}
28. Qh5 {[%clk 0:01:18.2]} 28... Qe8 {[%clk 0:02:17.1]} 29. Qxh6 {[%clk
0:01:15.5]} 29... Qg6 {[%clk 0:02:17]} 30. Qh3 {[%clk 0:01:08.8]} 30... f3
{[%clk 0:01:55.6]} 31. g3 {[%clk 0:01:03]} 31... Qf5 {[%clk 0:01:30.7]} 32. Qh6
{[%clk 0:00:56.3]} 32... Rf6 {[%clk 0:01:29.5]} 33. Qh4 {[%clk 0:00:50.6]} 33...
Ng6 {[%clk 0:01:08.6]} 34. Qh6 {[%clk 0:00:42.8]} 34... Ne5 {[%clk 0:00:55.7]}
35. Qh4 {[%clk 0:00:40.7]} 35... h6 {[%clk 0:00:52.9]} 36. Ra1 {[%clk
0:00:26.8]} 36... Qg5 {[%clk 0:00:52.7]} 37. Ra8+ {[%clk 0:00:25.9]} 37... Rf8
{[%clk 0:00:50]} 38. Rxf8+ {[%clk 0:00:21.2]} 38... Kxf8 {[%clk 0:00:49.9]} 39.
Qh3 {[%clk 0:00:22.1]} 39... Qxd2 {[%clk 0:00:35.2]} 40. Qxh6+ {[%clk
0:00:21.7]} 40... Qxh6 {[%clk 0:00:33.9]} 0-1

[Event "Late-Titled-Tuesday-Blitz-May-28-2024"]
[Site "Chess.com"]
[Date "2024.05.28"]
[Round "9"]
[White "RantomOpening"]
[Black "NikitaShnadrygin"]
[Result "0-1"]
[WhiteElo "2578"]
[BlackElo "2734"]
[TimeControl "180+1"]
[EndTime "15:44:10 PDT"]
[Termination "NikitaShnadrygin won on time"]

1. c4 {[%clk 0:02:59.4]} 1... Nf6 {[%clk 0:02:59.8]} 2. Nf3 {[%clk 0:02:59.3]}
2... g6 {[%clk 0:02:57.4]} 3. Nc3 {[%clk 0:02:59.4]} 3... d5 {[%clk 0:02:57.4]}
4. cxd5 {[%clk 0:02:56.9]} 4... Nxd5 {[%clk 0:02:58.3]} 5. e4 {[%clk 0:02:56.7]}
5... Nxc3 {[%clk 0:02:58.7]} 6. bxc3 {[%clk 0:02:57.6]} 6... Bg7 {[%clk
0:02:58.4]} 7. d4 {[%clk 0:02:58]} 7... c5 {[%clk 0:02:58.9]} 8. Bb5+ {[%clk
0:02:58.1]} 8... Bd7 {[%clk 0:02:53.2]} 9. Bxd7+ {[%clk 0:02:57.4]} 9... Qxd7
{[%clk 0:02:53.8]} 10. O-O {[%clk 0:02:57.7]} 10... O-O {[%clk 0:02:54.1]} 11.
Be3 {[%clk 0:02:55.9]} 11... Nc6 {[%clk 0:02:49.7]} 12. Rb1 {[%clk 0:02:53.4]}
12... Rac8 {[%clk 0:02:46.9]} 13. d5 {[%clk 0:02:46.3]} 13... Na5 {[%clk
0:02:45.4]} 14. Qd3 {[%clk 0:02:37.4]} 14... c4 {[%clk 0:02:43.9]} 15. Qd2
{[%clk 0:02:36]} 15... b6 {[%clk 0:02:44.2]} 16. Bh6 {[%clk 0:02:27.5]} 16...
Nb7 {[%clk 0:02:43.1]} 17. Bxg7 {[%clk 0:02:25.8]} 17... Kxg7 {[%clk 0:02:44]}
18. Qd4+ {[%clk 0:02:24.6]} 18... f6 {[%clk 0:02:43.8]} 19. e5 {[%clk
0:01:54.2]} 19... Rc5 {[%clk 0:02:37.2]} 20. Rbd1 {[%clk 0:01:49.7]} 20... Rd8
{[%clk 0:02:25]} 21. exf6+ {[%clk 0:00:41.9]} 21... exf6 {[%clk 0:02:24.3]} 22.
Rde1 {[%clk 0:00:16.8]} 22... Rxd5 {[%clk 0:01:45.6]} 23. Qxc4 {[%clk
0:00:16.1]} 23... Rc8 {[%clk 0:01:30.2]} 24. Qb4 {[%clk 0:00:15.5]} 24... Nd6
{[%clk 0:01:23.1]} 25. Nd4 {[%clk 0:00:14.2]} 25... Kf7 {[%clk 0:01:10.1]} 26.
Qb3 {[%clk 0:00:14.1]} 26... Nc4 {[%clk 0:01:10.4]} 27. Ne6 {[%clk 0:00:08.7]}
27... Nd2 {[%clk 0:01:07.1]} 28. Qc2 {[%clk 0:00:01.9]} 28... Nxf1 {[%clk
0:01:07]} 29. Nf4 {[%clk 0:00:01.7]} 29... Nd2 {[%clk 0:00:57.8]} 30. Nxd5
{[%clk 0:00:01.2]} 30... Qxd5 {[%clk 0:00:58.7]} 31. Rd1 {[%clk 0:00:01.3]}
31... Rd8 {[%clk 0:00:58.9]} 32. Kh1 {[%clk 0:00:01.3]} 32... Qd3 {[%clk
0:00:52.3]} 33. Qb2 {[%clk 0:00:01.7]} 33... Qe2 {[%clk 0:00:48.7]} 34. Qc2
{[%clk 0:00:01.7]} 34... Qxf2 {[%clk 0:00:46.2]} 35. h3 {[%clk 0:00:02.3]} 35...
Kg7 {[%clk 0:00:37.9]} 36. a4 {[%clk 0:00:02.6]} 36... Ne4 {[%clk 0:00:37.1]}
37. Qxf2 {[%clk 0:00:01.6]} 37... Nxf2+ {[%clk 0:00:37]} 0-1